[Event "Istanbul Open 2018"]
[Site "Istanbul"]
[Date "2018.09.03"]
[Round "3"]
[White "Ozveren, Ali Bulent"]
[Black "Tirak, Mert"]
[Result "0-1"]
[ECO "B23"]
[WhiteElo "1849"]
[BlackElo "1941"]
[Annotator "NA"]
[PlyCount "78"]
[EventDate "2018.09.02"]
[EventType "swiss"]
[EventCountry "TUR"]
[SourceTitle "playchess.com"]
[Source "ChessBase"]
[SourceQuality "1"]
[TimeControl "5400+30"]

1. e4 {[%emt 0:00:30]} c5 {[%emt 0:18:30]} 2. Nc3 {[%emt 0:00:00]} a6 {[%emt 0:01:30]} 3. g3 {[%emt 0:02:00]} b5 {[%emt 0:01:30]} 4. Bg2 {[%emt 0:00:00]} Bb7 {[%emt 0:00:00]} 5. d3 {[%emt 0:01:00]} e6 {[%emt 0:00:00]} 6. Nge2 {[%emt 0:01:30] B23: Closed Sicilian: Lines without g3} (6. f4 Be7 7. Nh3 b4 8. Ne2 Nf6 9. O-O d6 10. Nf2 Nc6 11. c3 bxc3 12. bxc3 O-O 13. Rb1 Qc7 14. g4 {½-½ (44) Li,R (2583)-Kovalyov,A (2658) Philadelphia 2018}) 6... b4 {[%emt 0:00:00]} 7. Nb1 {[%emt 0:00:30]} d5 {[%emt 0:00:00]} 8. O-O {[%emt 0:00:30]} Nf6 {[%emt 0:00:30]} 9. Nd2 {[%emt 0:01:30]} Nc6 {[%emt 0:01:30]} 10. exd5 {[%emt 0:07:30]} Nxd5 {[%emt 0:01:30]} 11. Nc4 $146 {[%emt 0:01:30]} ({Predecessor:} 11. Ne4 Be7 12. Nf4 O-O 13. Be3 Nxe3 14. fxe3 g6 {0-1 (35) Riva,E (1687)-Almiron,A (2128) Asuncion 2011}) 11... Be7 {[%emt 0:01:30]} 12. Nf4 {[%emt 0:04:30]} Nb6 {[%emt 0:07:30]} 13. Ne5 {[%emt 0:46:30]} Qc7 {[%emt 0:10:30]} 14. Nxf7 {[%emt 0:04:30]} Kxf7 {[%emt 0:03:30]} 15. Nxe6 {[%emt 1:33:35]} Kxe6 {[%emt 0:02:30]} 16. Re1+ {[%emt 0:00:14]} Kf7 {[%emt 0:00:30]} 17. Bf4 {[%emt 0:02:52]} Qd7 {[%emt 0:02:30]} 18. c3 {[%emt 1:37:35]} g6 {[%emt 1:15:00]} 19. Qb3+ {[%emt 0:00:30]} Kg7 {[%emt 0:00:30]} 20. cxb4 {[%emt 0:00:30]} Nd4 {[%emt 0:00:30]} 21. Be5+ {[%emt 0:00:30]} Bf6 {[%emt 0:00:30]} 22. Bxd4 {[%emt 0:00:30]} Bxd4 {[%emt 0:00:30]} 23. bxc5 {[%emt 0:00:30]} Bxg2 {[%emt 0:00:30]} 24. Kxg2 {[%emt 0:00:30]} Bxc5 {[%emt 0:00:30]} 25. Re4 {[%emt 0:00:37]} Rad8 {[%emt 0:03:30]} 26. Rc1 {[%emt 0:00:37]} Bd4 {[%emt 0:00:30]} 27. Qb4 {[%emt 0:00:24]} Rhe8 {[%emt 0:00:30]} 28. Rce1 {[%emt 0:00:33]} Rxe4 {[%emt 0:01:30]} 29. Rxe4 {[%emt 0:00:01]} Qd6 {[%emt 0:01:12]} 30. Qe1 {[%emt 0:00:35]} Qd5 {[%emt 0:00:54]} 31. f3 {[%emt 0:00:25]} Bf6 {[%emt 0:01:08]} 32. Qe3 {[%emt 0:00:24]} Nc8 {[%emt 0:01:12]} 33. Rc4 {[%emt 0:00:30]} Nd6 {[%emt 0:01:45]} 34. Rc7+ {[%emt 0:00:20]} Nf7 {[%emt 0:00:04]} 35. Qa7 {[%emt 0:00:46]} Qxa2 {[%emt 0:00:17]} 36. Kh3 {[%emt 0:01:06]} Qe6+ {[%emt 0:00:31]} 37. g4 {[%emt 0:00:22]} Rxd3 {[%emt 0:00:11]} 38. Qb7 {[%emt 0:00:07]} h5 {[%emt 0:00:24]} 39. Rc2 {[%emt 0:01:05]} Qxg4# {[%emt 0:00:37]} 0-1

[Event "Istanbul Open 2018"]
[Site "Istanbul"]
[Date "2018.09.03"]
[Round "3"]
[White "Gundogan, Sinem Cagla"]
[Black "Satici, Aydin"]
[Result "1/2-1/2"]
[ECO "A04"]
[WhiteElo "1834"]
[BlackElo "1605"]
[Annotator "NA RC"]
[PlyCount "102"]
[EventDate "2018.09.02"]
[EventType "swiss"]
[EventCountry "TUR"]
[SourceTitle "playchess.com"]
[Source "ChessBase"]
[SourceQuality "1"]
[TimeControl "5400+30"]

1. e4 {[%emt 0:07:30]} c5 {[%emt 0:00:30]} 2. Nf3 {[%emt 0:00:30]} d6 {[%emt 0:01:30]} 3. d3 {[%emt 0:00:30]} Nc6 {[%emt 0:00:30]} 4. g3 {[%emt 0:00:30]} g6 {[%emt 0:00:30]} 5. Bg2 {[%emt 0:00:30]} Bg7 {[%emt 0:00:30]} 6. O-O {[%emt 0:00:30]} Rb8 {[%emt 0:01:30] LiveBook: 13 Games} 7. Re1 {[%emt 0:02:00] A04: Unusual lines after 1 Nf3 and King's Indian Attack} e5 {[%emt 0:05:30]} 8. c3 {[%emt 0:03:30]} Nge7 {[%emt 0:01:30]} 9. Be3 $146 {[%emt 0:05:30]} ({Predecessor:} 9. a3 O-O 10. Be3 Qc7 11. d4 b6 12. a4 h6 13. Na3 a6 14. Qd2 Kh7 {1-0 (40) Sagalchik,G (2525)-Ciaffone,R (2245) North Bay 1996}) 9... Bg4 {[%emt 0:01:30]} 10. h3 {[%emt 0:01:30]} Bxf3 {[%emt 0:00:30]} 11. Bxf3 {[%emt 0:00:30]} O-O {[%emt 0:00:30]} 12. Bg2 {[%emt 0:04:30]} f5 {[%emt 0:06:30]} 13. Qd2 {[%emt 0:01:30]} Qc7 {[%emt 0:02:30]} 14. Na3 {[%emt 0:01:30]} b5 {[%emt 0:01:30]} 15. Nc2 {[%emt 0:00:30]} b4 {[%emt 0:00:30]} 16. cxb4 Nxb4 17. Na3 f4 18. gxf4 exf4 19. Bxf4 Rxf4 20. Qxf4 Nxd3 21. Qe3 Nxe1 22. Rxe1 Bd4 23. Qd3 Rxb2 24. Rf1 Qd7 25. Nc4 Rb4 26. a3 Rb8 27. Qg3 Rd8 {[%emt 1:00:30]} 28. Bf3 {[%emt 1:12:00]} Qe6 {[%emt 0:00:30]} 29. Rc1 {[%emt 0:01:30]} Nc6 {[%emt 0:03:30]} 30. Bg4 {[%emt 0:02:30]} Qf6 {[%emt 0:00:30]} 31. Kg2 {[%emt 0:02:30]} Ne5 {[%emt 0:02:30]} 32. Be2 {[%emt 0:02:30]} Rf8 {[%emt 0:03:30]} 33. Rf1 {[%emt 0:00:30]} Kg7 {[%emt 1:22:30]} 34. f4 {[%emt 1:31:03]} Nxc4 {[%emt 0:00:30]} 35. Bxc4 {[%emt 0:00:30]} Rb8 {[%emt 0:00:30]} 36. Qg4 {[%emt 0:00:30]} Qe7 {[%emt 0:02:30]} 37. Bd5 {[%emt 0:01:42]} h5 {[%emt 0:08:00]} 38. Qf3 {[%emt 0:01:51]} (38. Qg5 $17 Rb2+ 39. Kh1) 38... Rb2+ {[%emt 0:01:37]} 39. Kh1 {[%emt 0:00:05]} Qh4 {[%emt 0:01:09]} 40. Bb3 {[%emt 0:02:56]} Rf2 {[%emt 0:02:52]} 41. Rxf2 {[%emt 0:00:30]} Qxf2 {[%emt 0:00:15]} 42. Qxf2 {[%emt 0:00:16]} Bxf2 {[%emt 0:00:03]} 43. Kg2 {[%emt 0:00:14]} Bd4 {[%emt 0:00:13]} 44. Kf3 {[%emt 0:02:12]} Kf6 {[%emt 0:00:13]} 45. Ke2 {[%emt 0:01:11]} g5 {[%emt 0:00:26]} 46. fxg5+ {[%emt 0:00:10]} Kxg5 {[%emt 0:00:03]} 47. Kd3 {[%emt 0:00:06]} Kf6 {[%emt 0:02:19]} 48. Ke2 {[%emt 0:00:30]} Kg5 {[%emt 0:00:30]} 49. Kd3 {[%emt 0:02:17]} Kf4 {[%emt 0:00:03]} 50. Be6 {[%emt 0:00:03]} Ke5 $15 {[%emt 0:01:56]} 51. Bd5 {[%emt 0:00:08]} Bf2 {[%emt 0:01:44]} 1/2-1/2

[Event "Istanbul Open 2018"]
[Site "Istanbul"]
[Date "2018.09.03"]
[Round "3"]
[White "Yetkin, Ayhan"]
[Black "Tepeli, Huseyin"]
[Result "0-1"]
[ECO "B17"]
[WhiteElo "1801"]
[BlackElo "1529"]
[Annotator "NA"]
[PlyCount "74"]
[EventDate "2018.09.02"]
[EventType "swiss"]
[EventCountry "TUR"]
[SourceTitle "playchess.com"]
[Source "ChessBase"]
[SourceQuality "1"]
[TimeControl "5400+30"]

1. e4 {[%emt 0:01:30]} c6 {[%emt 0:02:30]} 2. d4 {[%emt 0:00:30]} d5 {[%emt 0:00:30]} 3. Nc3 {[%emt 0:02:30]} dxe4 {[%emt 0:00:30]} 4. Nxe4 {[%emt 0:00:30]} Nd7 {[%emt 0:00:30]} 5. Bc4 {[%emt 0:01:30]} e6 {[%emt 0:00:30]} 6. Nf3 {[%emt 0:08:30]} Ngf6 {[%emt 0:00:30]} 7. Ng3 {[%emt 0:00:30]} Bd6 {[%emt 0:02:30]} 8. O-O {[%emt 0:00:30]} O-O {[%emt 0:08:30]} 9. Re1 {[%emt 0:02:30] B17: Caro-Kann: Modern Line (4...Nd7)} Nb6 {[%emt 0:01:30]} (9... c5 10. c3 Qc7 11. Bd3 Rd8 12. Qe2 h6 13. Bc2 Bf4 14. Ne5 Bxc1 15. Raxc1 Nf8 16. dxc5 Qxc5 {0-1 (44) Buksa,N (2310)-Shkuran,D (2425) Lvov 2016}) 10. Bd3 {[%emt 0:05:30]} c5 {[%emt 0:01:30]} 11. c3 $146 {[%emt 0:15:30]} ({Predecessor:} 11. Ne4 Nxe4 12. Rxe4 c4 13. Be2 Qc7 14. h3 c3 15. bxc3 Nd5 16. Qd3 Nxc3 {0-1 (59) Bryant,B (1556)-Johanson,F (1890) IECG email 1998}) 11... cxd4 {[%emt 0:04:30]} 12. Nxd4 {[%emt 0:00:30]} Nbd5 {[%emt 0:00:30]} 13. Nh5 {[%emt 0:09:30]} g6 {[%emt 0:03:30]} 14. Nxf6+ Qxf6 15. g3 Kg7 16. Qd2 Kg8 17. Qh6 Bd7 18. Bg5 Qg7 19. Qh4 h5 {[%emt 0:44:30]} 20. a3 {[%emt 1:28:49]} f6 {[%emt 0:06:30]} 21. Bd2 {[%emt 0:00:23]} Rae8 {[%emt 0:02:30]} 22. c4 {[%emt 0:01:57]} Nc7 {[%emt 0:04:30]} 23. Bc3 {[%emt 0:02:35]} e5 {[%emt 0:01:30]} 24. Nb5 {[%emt 0:02:04]} Nxb5 {[%emt 0:00:30]} 25. cxb5 {[%emt 0:00:01]} Bg4 {[%emt 1:07:30]} 26. Bxg6 {[%emt 1:41:54]} Qxg6 {[%emt 0:00:30]} 27. h3 {[%emt 0:00:30]} Be6 {[%emt 0:00:30]} 28. Rad1 $19 {[%emt 0:00:30]} Bc7 {[%emt 0:00:30]} 29. Bb4 {[%emt 0:00:30]} Rf7 {[%emt 0:00:30]} 30. Rc1 {[%emt 0:00:30]} Bb6 {[%emt 0:00:30]} 31. Bc5 {[%emt 0:00:30]} Bxc5 {[%emt 0:00:30]} 32. Rxc5 {[%emt 0:00:30]} Rd7 {[%emt 0:01:30]} 33. b4 {[%emt 0:01:02]} Red8 {[%emt 0:01:30]} 34. Kg2 {[%emt 0:00:31]} Rd1 {[%emt 0:00:30]} 35. Rxd1 {[%emt 0:00:27]} Rxd1 {[%emt 0:00:30]} 36. Rc3 {[%emt 0:00:33]} Bd5+ {[%emt 0:01:30]} 37. f3 {[%emt 0:00:21]} Rd2+ {[%emt 0:00:00]} 0-1

[Event "Istanbul Open 2018"]
[Site "Istanbul"]
[Date "2018.09.03"]
[Round "3"]
[White "Gezici, Omer Ata"]
[Black "Rodriguez Fuentes, Kenan Rafael"]
[Result "1-0"]
[ECO "B54"]
[WhiteElo "1736"]
[BlackElo "1548"]
[Annotator "NA RC"]
[PlyCount "71"]
[EventDate "2018.09.02"]
[EventType "swiss"]
[EventCountry "TUR"]
[SourceTitle "playchess.com"]
[Source "ChessBase"]
[SourceQuality "1"]
[TimeControl "5400+30"]

1. e4 c5 2. Nf3 a6 3. c4 e6 4. Nc3 Nc6 5. d4 cxd4 6. Nxd4 Be7 7. Be3 d6 8. Be2 Nf6 9. O-O O-O 10. Rc1 Qc7 11. Nd5 Qd8 12. Nxe7+ Qxe7 13. f3 Nxd4 14. Bxd4 e5 15. Be3 Be6 16. Qd2 Rfd8 17. Bb6 Rdc8 18. Rfd1 Rc6 19. Ba5 Rac8 20. b3 Kh8 21. Bb4 Rd8 22. Qb2 Qc7 23. Qa3 Nh5 24. Bf1 g5 25. h3 Qb6+ 26. Kh2 Qe3 {[%emt 1:24:35]} 27. Rc3 {[%emt 1:30:42]} Qf2 {[%emt 0:04:02]} 28. Bxd6 {[%emt 0:09:34]} Rdxd6 {[%emt 0:03:27]} 29. Rxd6 {[%emt 0:00:14]} Ng3 {[%emt 0:05:05]} 30. Rd1 {[%emt 0:01:43]} Rc8 {[%emt 0:02:30]} 31. Qc1 {[%emt 0:01:03]} Bxh3 {[%emt 0:01:45]} 32. Rc2 {[%emt 0:00:34]} Nxf1+ {[%emt 0:01:17]} 33. Rxf1 {[%emt 0:00:16]} Qh4 {[%emt 0:00:25]} 34. gxh3 {[%emt 0:00:21]} Rc6 {[%emt 0:00:44]} 35. Qe1 {[%emt 0:00:44]} Qf4+ {[%emt 0:00:40]} 36. Qg3 {[%emt 0:00:13]} 1-0

[Event "Istanbul Open 2018"]
[Site "Istanbul"]
[Date "2018.09.02"]
[Round "3"]
[White "Cibik, Huseyin Bora"]
[Black "Akdas, Emre"]
[Result "1/2-1/2"]
[ECO "A80"]
[WhiteElo "1666"]
[BlackElo "1684"]
[Annotator "NA"]
[PlyCount "55"]
[EventDate "2018.09.02"]
[EventType "swiss"]
[EventCountry "TUR"]
[SourceTitle "playchess.com"]
[Source "ChessBase"]
[SourceQuality "1"]
[TimeControl "5400+30"]

1. d4 f5 2. Nf3 Nf6 3. Bg5 e6 4. e3 d5 5. Bd3 Be7 6. Nbd2 Ne4 7. Bxe7 Qxe7 8. Ne5 O-O 9. Qe2 Nd7 10. Ndf3 c5 11. c3 cxd4 12. exd4 Nxe5 13. Nxe5 Qg5 14. Bxe4 fxe4 15. Qg4 Qf5 16. O-O b6 17. Qg3 Ba6 18. Rfe1 Qf4 {[%emt 1:13:00]} 19. f3 {[%emt 0:58:30]} exf3 {[%emt 0:00:30]} 20. Qxf4 {[%emt 0:01:30]} Rxf4 {[%emt 0:00:30]} 21. Nxf3 {[%emt 0:00:30]} Re8 {[%emt 0:01:30]} 22. Re3 {[%emt 0:02:30]} Rf6 {[%emt 0:03:30]} 23. Rae1 {[%emt 0:01:30]} Re7 {[%emt 0:01:30]} 24. h3 {[%emt 0:03:30]} Bb5 {[%emt 0:00:30]} 25. Ne5 {[%emt 0:03:30]} Rf3 {[%emt 0:02:21]} 26. Nxf3 {[%emt 0:00:00]} Bd3 {[%emt 0:00:36]} 27. Ne5 {[%emt 0:01:00]} Be4 {[%emt 0:00:10]} 28. Rf1 {[%emt 0:02:30]} 1/2-1/2

[Event "Istanbul Open 2018"]
[Site "Istanbul"]
[Date "2018.09.03"]
[Round "3"]
[White "Suer, Halil Cenk"]
[Black "Kavacik, Ahmet"]
[Result "0-1"]
[ECO "A36"]
[WhiteElo "1608"]
[BlackElo "1800"]
[Annotator "NA"]
[PlyCount "71"]
[EventDate "2018.09.02"]
[EventType "swiss"]
[EventCountry "TUR"]
[SourceTitle "playchess.com"]
[Source "ChessBase"]
[SourceQuality "1"]
[TimeControl "5400+30"]

1. e4 {[%emt 0:00:30]} c5 {[%emt 0:06:30]} 2. c4 {[%emt 0:00:30]} Nc6 {[%emt 0:00:30]} 3. Nc3 {[%emt 0:01:30]} g6 {[%emt 0:01:30]} 4. g3 {[%emt 0:01:30]} Bg7 {[%emt 0:00:30] LiveBook: 436 Games} 5. Bg2 {[%emt 0:00:30]} d6 6. d3 Nf6 7. Nge2 Bg4 8. f3 {A36: Symmetrical English vs ...g6: 4 Bg2 Bg7} (8. h3 Bxe2 9. Nxe2 Nd7 10. O-O O-O 11. Rb1 Rb8 12. Be3 Qa5 13. a3 b5 14. e5 Ncxe5 15. f4 bxc4 16. fxe5 Nxe5 {0-1 (46) Papin,V (2561)-Tkachiev,V (2650) Warsaw 2012}) 8... Be6 9. O-O Qd7 $146 ({Predecessor:} 9... O-O 10. Be3 a6 11. Rb1 {0-1 (41) Pasionek,A (1988)-Ziemniak,P (1830) Pstragowa 2014}) 10. Nf4 Nh5 11. Nxe6 fxe6 12. Be3 e5 13. Nd5 O-O 14. Qd2 Nd4 15. Bxd4 exd4 16. Qg5 {[%emt 1:17:00]} Rae8 {[%emt 0:53:00]} 17. g4 {[%emt 0:07:08]} Bf6 {[%emt 0:06:30]} 18. Nxf6+ {[%emt 0:00:55]} Nxf6 {[%emt 0:00:30]} 19. h4 {[%emt 0:05:05]} e5 {[%emt 0:05:30]} 20. h5 {[%emt 0:01:14]} Qg7 {[%emt 0:02:30]} 21. h6 {[%emt 0:00:10]} Qe7 {[%emt 1:20:30]} 22. f4 {[%emt 1:34:19]} exf4 {[%emt 0:00:30]} 23. Rxf4 {[%emt 0:00:30]} Qe5 {[%emt 0:03:32]} 24. Rf5 {[%emt 0:01:27]} Qe7 {[%emt 0:00:11]} 25. Raf1 {[%emt 0:00:36]} Nd7 {[%emt 0:00:16]} 26. Rxf8+ {[%emt 0:01:57]} Nxf8 {[%emt 0:00:38]} 27. Qd5+ {[%emt 0:00:27]} (27. Qxe7 $142 Rxe7 {[#]} 28. e5 $1 {[%mdl 512]} Rxe5 29. Bxb7) 27... Ne6 {[%emt 0:03:35]} 28. g5 {[%emt 0:02:55]} Qxg5 {[%emt 0:00:53]} 29. Qxb7 {[%emt 0:00:25]} Qe3+ {[%emt 0:00:12]} 30. Kh2 {[%emt 0:01:15]} Qxh6+ {[%emt 0:00:35]} 31. Bh3 {[%emt 0:00:12]} Ng5 {[%emt 0:01:45]} 32. Qd7 {[%emt 0:01:01]} Qxh3+ {[%emt 0:11:15]} 33. Qxh3 {[%emt 0:00:07]} Nxh3 {[%emt 0:00:00]} 34. Kxh3 {[%emt 0:00:52]} Rf8 {[%emt 0:00:00]} 35. Rxf8+ $2 {[%emt 0:00:32]} (35. Rd1) 35... Kxf8 {[%emt 0:00:00]} 36. b4 $19 {[%emt 0:00:38]} 0-1

[Event "Istanbul Open 2018"]
[Site "Istanbul"]
[Date "2018.09.03"]
[Round "3"]
[White "Ersoy, Emre"]
[Black "Sar, Can"]
[Result "1/2-1/2"]
[ECO "B77"]
[WhiteElo "1557"]
[BlackElo "1800"]
[Annotator "NA RC"]
[PlyCount "135"]
[EventDate "2018.09.02"]
[EventType "swiss"]
[EventCountry "TUR"]
[SourceTitle "playchess.com"]
[Source "ChessBase"]
[SourceQuality "1"]
[TimeControl "5400+30"]

1. e4 {[%emt 0:00:30]} c5 {[%emt 0:00:30]} 2. Nf3 {[%emt 0:00:30]} g6 {[%emt 0:00:00]} 3. d4 {[%emt 0:00:30]} cxd4 {[%emt 0:00:00]} 4. Nxd4 {[%emt 0:00:00]} Bg7 {[%emt 0:00:00]} 5. Nc3 {[%emt 0:00:00]} Nc6 {[%emt 0:00:00]} 6. Be3 {[%emt 0:00:30]} Nf6 {[%emt 0:00:30]} 7. Bc4 {[%emt 0:01:30]} O-O {[%emt 0:00:30]} 8. Bb3 d6 9. f3 Bd7 10. Qd2 Na5 11. O-O-O {B77: Sicilian Dragon: Yugoslav Attack, 9 Bc4 sidelines} (11. h4 h5 12. O-O-O Rb8 13. g4 b5 14. gxh5 Nxh5 15. Rhg1 Nc4 16. Bxc4 bxc4 17. Bh6 Qb6 18. b3 cxb3 19. axb3 Qa5 20. Kb2 {0-1 (33) Gao,R (2561)-Xu,X (2581) Tianjin 2018}) 11... Nxb3+ 12. axb3 a5 13. Bh6 a4 14. bxa4 Bxa4 15. h4 Bd7 16. Bxg7 Kxg7 17. h5 Ra1+ $146 ({Predecessor:} 17... e5 18. Nb3 Be6 19. hxg6 fxg6 {1-0 (80) Marutkins,O (1970)-Mustaps,M (2278) Riga 2012}) 18. Nb1 Qa5 19. hxg6 Qxd2+ 20. Kxd2 hxg6 21. Nc3 Rxd1+ 22. Nxd1 e5 23. Ne2 d5 24. exd5 Nxd5 25. Ndc3 {[%emt 1:16:30]} Nxc3 {[%emt 0:52:30]} 26. Nxc3 {[%emt 0:00:30]} Bc6 {[%emt 0:00:30]} 27. Ke3 {[%emt 0:01:30]} Rd8 {[%emt 0:00:30]} 28. Ra1 {[%emt 0:08:34]} f5 {[%emt 0:00:30]} 29. b4 {[%emt 0:03:07]} f4+ {[%emt 0:12:30]} 30. Ke2 {[%emt 0:01:44]} g5 {[%emt 1:12:00]} 31. b5 {[%emt 1:41:03]} Be8 {[%emt 0:00:30]} 32. Ra7 {[%emt 0:00:30]} Rb8 {[%emt 0:00:30]} 33. Kd3 {[%emt 0:00:30]} Kf6 {[%emt 0:00:30]} 34. Ne4+ {[%emt 0:00:30]} Ke7 {[%emt 0:00:30]} 35. Kc4 {[%emt 0:02:01]} Rc8+ {[%emt 0:00:30]} 36. Kb3 {[%emt 0:01:37]} Bf7+ {[%emt 0:00:30]} 37. Kb2 {[%emt 0:00:24]} Bd5 {[%emt 0:00:30]} 38. Nxg5 {[%emt 0:00:43]} Rg8 {[%emt 0:00:00]} 39. c4 {[%emt 0:01:08]} Rxg5 {[%emt 0:07:00]} 40. cxd5 {[%emt 0:00:08]} Rxg2+ {[%emt 0:00:00]} 41. Kc3 {[%emt 0:00:11]} Kd6 {[%emt 0:00:00]} 42. Rxb7 {[%emt 0:00:56]} Kxd5 {[%emt 0:00:00]} 43. Kb4 {[%emt 0:01:11]} e4 {[%emt 0:02:00]} 44. fxe4+ {[%emt 0:00:19]} Kxe4 {[%emt 0:00:00]} 45. Kc5 {[%emt 0:00:37]} f3 {[%emt 0:00:00]} 46. Rf7 {[%emt 0:00:25]} f2 {[%emt 0:02:30]} 47. b6 {[%emt 0:00:20]} Rg5+ {[%emt 0:01:30]} 48. Kc6 $1 {[%emt 0:00:38]} Rg6+ {[%emt 0:01:30]} 49. Kc7 {[%emt 0:00:17] [#]} Rg7 $1 {[%emt 0:02:30]} 50. Rxg7 {[%emt 0:00:03]} f1=Q {[%emt 0:00:00]} 51. b7 {[%emt 0:01:20]} (51. Rg4+ $11 {remains equal.} Kd5 52. Rg5+ Ke4 53. b7) 51... Qf4+ {[%emt 0:00:00]} 52. Kb6 {[%emt 0:00:29]} Qf6+ {[%emt 0:00:30]} 53. Kc5 {[%emt 0:00:38]} Qc3+ {[%emt 0:02:30]} 54. Kb6 {[%emt 0:00:28]} Qf6+ {[%emt 0:01:30]} (54... Qxg7 $5 55. b8=Q $8 Qg1+ 56. Kc6 Qc1+ 57. Kd7 Qc4 $11) 55. Kc5 {[%emt 0:00:20]} Qe5+ {[%emt 0:05:34]} 56. Kc6 {[%emt 0:00:30]} Qc3+ {[%emt 0:02:01]} 57. Kb6 {[%emt 0:00:35]} Qd4+ {[%emt 0:01:47]} 58. Kc6 {[%emt 0:00:05]} Qa7 {[%emt 0:02:11]} 59. Rd7 {[%emt 0:00:50]} Ke5 {[%emt 0:00:39]} 60. Rd5+ {[%emt 0:00:35]} Ke6 {[%emt 0:00:09]} 61. Rd6+ {[%emt 0:00:03]} Ke7 {[%emt 0:10:27]} 62. Rd5 $11 {[%emt 0:00:45]} Qa6+ {[%emt 0:00:00]} 63. Kc7 {[%emt 0:00:47]} Qc4+ {[%emt 0:00:00]} 64. Kb6 {[%emt 0:00:03]} Qb3+ {[%emt 0:00:00]} 65. Rb5 {[%emt 0:00:06]} Qe3+ {[%emt 0:00:00]} 66. Ka6 {[%emt 0:00:44]} Qa3+ {[%emt 0:00:00]} 67. Kb6 {[%emt 0:00:30]} Qd6+ {[%emt 0:00:00]} 68. Ka7 {[%emt 0:00:40]} 1/2-1/2

[Event "Istanbul Open 2018"]
[Site "Istanbul"]
[Date "2018.09.04"]
[Round "4"]
[White "Eryigit, Yakup"]
[Black "Tinarlioglu, Emre"]
[Result "1-0"]
[ECO "D40"]
[WhiteElo "2030"]
[BlackElo "1796"]
[Annotator "NA RC"]
[PlyCount "71"]
[EventDate "2018.09.02"]
[EventType "swiss"]
[EventCountry "TUR"]
[SourceTitle "playchess.com"]
[Source "ChessBase"]
[SourceQuality "1"]
[TimeControl "5400+30"]

{[%evp 8,66,16,16,3,9,20,18,8,0,0,7,0,-35,0,-25,-8,-38,-45,-39,-18,32767,-29,-53,6,0,13,-7,10,0,35,0,138,94,204,200,222,139,166,124,161,182,266,264,247,304,417,463,432,603,32767,32767,579,729,733,689,950,32767,1406,1662,29987]} 1. Nf3 {[%emt 0:00:30]} c5 {[%emt 0:00:30]} 2. c4 {[%emt 0:05:30]} Nc6 {[%emt 0:00:00]} 3. Nc3 {[%emt 0:00:00]} e6 {[%emt 0:00:00]} 4. e3 {[%emt 0:01:00]} Nf6 {[%emt 0:00:30]} 5. a3 {[%emt 0:00:30]} d5 {[%emt 0:00:30]} 6. d4 {[%emt 0:00:30]} cxd4 {[%emt 0:00:30]} 7. exd4 {[%emt 0:00:00]} Be7 {[%emt 0:00:00]} 8. Bd3 {[%emt 0:03:00]} dxc4 {[%emt 0:00:00]} 9. Bxc4 {[%emt 0:00:30]} O-O {[%emt 0:00:30] D40: Damengambit (Verbesserte Tarrasch-Verteidigung)} 10. Bg5 {[%emt 0:01:30]} (10. O-O Nd5 11. Re1 Nxc3 12. bxc3 Bf6 13. Bd3 Bd7 14. Rb1 b6 15. Rb5 g6 16. Bh6 Re8 17. Qd2 Ne7 18. Rbe5 Bc6 19. Bg5 Bg7 20. R5e3 h6 21. Bh4 Bxf3 22. Rxf3 {½-½ (42) Salem,A (2638)-Svidler,P (2749) Geneva 2017}) 10... a6 {[%emt 0:00:30] LiveBook: 3 Games} 11. Ba2 {[%emt 0:00:30]} b5 {[%emt 0:01:30]} 12. Rc1 {[%emt 0:00:30]} Bb7 {[%emt 0:00:30]} 13. Bb1 $146 {[%emt 0:00:30]} ({Vorgänger:} 13. O-O b4 14. axb4 Nxb4 15. Bb1 Nfd5 16. Ne4 h6 17. Bd2 Bc6 18. Ne5 Bb5 19. Re1 f5 20. Nc5 Bxc5 21. Rxc5 {1-0 (33) Ennsberger,U (2335)-Rogulj,B (2422) Austria 2015}) 13... Re8 {[%emt 0:07:30]} 14. Qd3 {[%emt 0:07:30]} g6 {[%emt 0:00:30]} 15. h4 {[%emt 0:00:00]} h5 {[%emt 0:05:30]} 16. O-O {[%emt 0:02:00]} Ng4 {[%emt 0:01:30]} 17. Ne4 {[%emt 0:01:30]} Bxg5 {[%emt 0:05:30]} 18. hxg5 {[%emt 0:00:30]} Ne7 {[%emt 0:04:30]} 19. Nfd2 {[%emt 0:11:30]} Nd5 {[%emt 0:01:30]} (19... Qb8 $11 {hält das Gleichgewicht.} 20. Qg3 Qxg3 21. Nxg3 Nf5) 20. Qg3 {[%emt 0:01:30]} e5 {[%emt 0:44:00] [#]} (20... Nb6 $16 {might work better.}) 21. dxe5 $1 {[%emt 0:00:30]} Nxe5 {[%emt 0:00:30]} 22. Rfe1 {[%emt 0:02:30]} (22. Ba2 $18 Nc4 23. Bxc4 bxc4 24. Rxc4) 22... Ng4 {[%emt 0:01:30]} 23. Nd6 {[%emt 0:01:30]} Rxe1+ {[%emt 0:01:30]} 24. Rxe1 {[%emt 0:00:30]} Bc6 {[%emt 0:00:00]} (24... Qb6 $142) 25. N2e4 {[%emt 0:00:30]} Qb6 {[%emt 0:52:30]} 26. Rd1 {[%emt 0:05:30]} ({Weaker is} 26. Qf3 Rf8 $14) 26... Rf8 {[%emt 0:05:30]} (26... b4 $142 27. Ba2 (27. Qf3 Rf8 $16) 27... bxa3) 27. Ba2 {[%emt 0:00:30]} Qa5 {[%emt 0:02:30]} 28. b4 {[%emt 0:08:30]} ({Less strong is} 28. Bxd5 Bxd5 29. Nf6+ Nxf6 $16) 28... Qc7 {[%emt 0:03:30]} 29. Rc1 {[%emt 0:04:30]} Qd7 {[%emt 0:01:30]} 30. f3 {[%emt 1:15:00]} Nge3 {[%emt 1:13:00]} 31. Qe5 {[%emt 0:00:30]} Ba8 {[%emt 0:00:30]} 32. Rc5 {[%emt 0:00:30]} Qa7 {[%emt 0:00:30]} 33. Kh1 {[%emt 0:00:30]} Rd8 {[%emt 0:00:30]} 34. Nf6+ {[%emt 0:01:30]} Nxf6 {[%emt 0:00:30]} 35. Qxf6 {[%emt 0:00:30]} Nd5 {[%emt 0:00:30]} 36. Qxd8+ {[%emt 0:00:00]} 1-0